fUST/lending_fUST_20251019
["ID","MTS","AMOUNT","RATE_DAILY","PERIOD"]
[391784540,1760808641405,-196.0,0.0003981,52]
[391784542,1760808641415,-392.5260468,0.00039818,30]
[391784544,1760808641424,-392.5260468,0.00039818,30]
[391784546,1760808641433,-392.5260468,0.00039818,30]
[391784548,1760808641443,-392.5260468,0.00039818,30]
[391784550,1760808641452,-421.14647088,0.00039821,7]
[391784552,1760808641462,-800.0,0.00039829,7]
[391784554,1760808641471,-800.0,0.00039834,7]
[391784556,1760808641482,-195.04276549,0.00039837,7]
[391784558,1760808641491,-502.97894241,0.00039837,7]
[391784560,1760808641504,-168.0,0.00039852,2]
[391784562,1760808641513,-159.546058,0.0003987,2]
[391784564,1760808641521,-155.27325,0.0003987,2]
[391784566,1760808641531,-155.675626,0.0003987,2]
[391784568,1760808641541,-267.20746273,0.0003989,2]
[391784570,1760808641550,-500.0,0.0003989,120]
[391784572,1760808641559,-500.0,0.0003989,120]
[391784574,1760808641571,-500.0,0.0003989,120]
[391784576,1760808641580,-500.0,0.0003989,120]
[391784578,1760808641589,-608.90859089,0.0003989,3]
[391784581,1760808641599,-151.0,0.0003989,120]
[391784583,1760808641610,-151.0,0.0003989,120]
[391784585,1760808641619,-206.583544,0.0003989,120]
[391784587,1760808641629,-151.0,0.0003989,120]
[391784589,1760808641644,-20000.0,0.000399,30]
[391784591,1760808641656,-178.05859051,0.000399,6]
[391784594,1760808641666,-7445.7061731,0.000399,2]
[391784596,1760808641678,-12635.05706657,0.000399,30]
[391784598,1760808641689,-19814.5299153,0.000399,2]
[391784600,1760808641699,-483.766665,0.0003998,2]
[391784602,1760808641710,-608.90859089,0.0003998,3]
[391784604,1760808641720,-452.11055623,0.00039999,31]
[391784606,1760808641739,-583.57679246,0.00039999,31]
[391784608,1760808641753,-168.82837932,0.00039999,31]
[391784610,1760808641763,-66380.80895356,0.0004,7]
[391784756,1760808644259,-500.0,0.00028699,2]
[391784757,1760808644269,-2.77840234,0.00028699,2]
[391784778,1760808647398,-497.22159766,0.00028699,2]
[391784779,1760808647408,-500.0,0.00028699,2]
[391784780,1760808647417,-500.0,0.00028699,2]
[391784781,1760808647426,-500.0,0.00028699,2]
[391784782,1760808647436,-500.0,0.00028699,2]
[391784783,1760808647445,-500.0,0.00028699,2]
[391784784,1760808647455,-500.0,0.00028699,2]
[391784785,1760808647464,-500.0,0.00028699,2]
[391784786,1760808647475,-300.0,0.00028699,2]
[391784787,1760808647484,-160.0,0.00038,30]
[391784788,1760808647498,-200.0,0.00039999,31]
[391784789,1760808647508,-55188.18088638,0.0004,7]
[391784792,1760809157161,417.15472785,0.0002415,2]
[391784793,1760809654661,2458.33,0.00033992,120]
[391784794,1760809654885,2458.33,0.00033992,120]
[391784795,1760809655117,2458.33,0.00033992,120]
[391784796,1760809655363,2458.33,0.00033992,120]
[391784797,1760809655626,2458.33,0.00033992,120]
[391784798,1760809655864,2458.33,0.00033992,120]
[391784799,1760809656465,2458.33,0.00033992,120]
[391784800,1760809656707,2458.33,0.00033992,120]
[391784801,1760809656949,2458.33,0.00033992,120]
[391784802,1760809657240,2458.33,0.00033992,120]
[391784803,1760809657500,2458.33,0.00033992,120]
[391784804,1760809657742,2458.33,0.00033992,120]
[391784805,1760809657988,2458.33,0.00033992,120]
[391784806,1760809658225,2458.33,0.00033992,120]
[391784807,1760809658460,2458.33,0.00033992,120]
[391784808,1760809658697,2458.33,0.00033992,120]
[391784809,1760809659002,2458.33,0.00033992,120]
[391784810,1760809659201,2458.33,0.00033992,120]
[391784811,1760809659441,2458.33,0.00033992,120]
[391784812,1760809659697,2458.33,0.00033992,120]
[391784813,1760809659936,2458.33,0.00033992,120]
[391784814,1760809660168,2458.33,0.00033992,120]
[391784815,1760809660417,2458.33,0.00033992,120]
[391784816,1760809660784,2458.41,0.00033992,120]
[391784855,1760809832671,-150.0,0.00025205,2]
[391784856,1760809832681,-240.0,0.00025805,2]
[391784857,1760809832690,-245.8870176,0.00027999,2]
[391784884,1760809838585,-54.1129824,0.00027999,2]
[391784886,1760809838594,-183.30272066,0.00028,2]
[391784888,1760809838604,-204.00726077,0.00028,2]
[391784890,1760809838614,-180.71890122,0.00028,2]
[391784892,1760809838625,-359.56837337,0.00028,2]
[391785786,1760810077449,417.15472785,0.0002415,2]
[391785787,1760810178583,9015.7005443,0.00024,2]
[391785788,1760810178606,5288.4894557,0.00024,2]
[391785789,1760810262920,160.0,0.00029,120]
[391785790,1760810770812,171.0,0.00024,120]
[391785926,1760811037711,-300.0,0.00027999,2]
[391785927,1760811037721,-33.49680867,0.00028,2]
[391785928,1760811037731,-160.144196,0.00028,2]
[391785929,1760811037740,-176.65557894,0.00028,2]
[391785930,1760811037750,-175.52797892,0.00028,2]
[391785931,1760811037759,-183.30272066,0.00028,2]
[391785932,1760811037768,-180.71890122,0.00028,2]
[391785933,1760811037777,-200.0,0.00028,2]
[391785934,1760811037786,-160.0,0.00028195,2]
[391785935,1760811037795,-393.06518204,0.000283,2]
[391785936,1760811037805,-175.52797892,0.000283,2]
[391785937,1760811037814,-183.30272066,0.000283,2]
[391785938,1760811037823,-262.61079851,0.000283,2]
[391785939,1760811037832,-393.06518204,0.000286,2]
[391785940,1760811037842,-175.52797892,0.000286,2]
[391785941,1760811037851,-183.30272066,0.000286,2]
[391785942,1760811037860,-393.06518204,0.000289,2]
[391785943,1760811037870,-1224.64,0.00029,2]
[391785944,1760811037879,-1224.64,0.00029174,2]
[391785945,1760811037890,-393.06518204,0.000292,2]
[391785946,1760811037899,-420.0,0.00030239,2]
[391785947,1760811037909,-150.0,0.00030614,2]
[391785948,1760811037918,-156.88,0.00031241,15]
[391785949,1760811037928,-174.87,0.00031241,15]
[391785950,1760811037937,-174.87,0.00031341,15]
[391785951,1760811037946,-174.87,0.00031441,15]
[391785952,1760811037956,-174.87,0.00031541,15]
[391785953,1760811037965,-174.87,0.00031641,15]
[391785954,1760811037974,-174.89,0.00031741,15]
[391785955,1760811037983,-158.771971,0.0003224,15]
[391785956,1760811037992,-500.0,0.00032619,7]
[391785957,1760811038002,-587.0,0.00032658,2]
[391785958,1760811038011,-196.3514488,0.00033315,2]
[391785959,1760811038021,-150.0,0.00033397,2]
[391785960,1760811038031,-179.42,0.00033727,36]
[391785961,1760811038040,-270.17670625,0.00033758,2]
[391785962,1760811038050,-185.3205,0.0003395,2]
[391785963,1760811038059,-500.0,0.00033992,2]
[391785964,1760811038068,-241.23,0.00033992,30]
[391785965,1760811038078,-200.0,0.00034171,120]
[391785966,1760811038087,-171.0,0.000346,120]
[391785967,1760811038097,-823.0,0.00035271,2]
[391785968,1760811038107,-150.0,0.00035274,2]
[391785969,1760811038116,-1884.62500197,0.00035274,2]
[391785988,1760811039930,-277.37499803,0.00035274,2]
[391785990,1760811039940,-631.0,0.00035274,2]
[391785992,1760811039949,-486.31807126,0.00035759,2]
[391785994,1760811039958,-500.0,0.00036075,30]
[391785996,1760811039968,-150.0,0.0003618,2]
[391785998,1760811039977,-197.08871229,0.00037,120]
[391786000,1760811039986,-148.69237023,0.00037759,2]
[391786202,1760811460086,500.211119,0.00013699,2]
[391786203,1760811460296,500.211119,0.00020187,2]
[391786205,1760811899657,417.15472785,0.0002415,2]
[391786272,1760812122749,3293.94357845,0.00024142,2]
[391786273,1760812122773,10000.01,0.00024142,2]
[391786274,1760812122795,10000.01,0.00024142,2]
[391786275,1760812122817,10000.01,0.00024142,2]
[391786276,1760812122838,10000.01,0.00024142,2]
[391786277,1760812122859,10000.01,0.00024142,2]
[391786278,1760812122880,10000.01,0.00024142,2]
[391786279,1760812122903,10000.01,0.00024142,2]
[391786280,1760812122924,10000.01,0.00024142,2]
[391786286,1760812131604,-8449.482204,0.00024142,2]
[391786287,1760812131748,-10000.01,0.00024142,2]
[391786288,1760812131875,-10000.01,0.00024142,2]
[391786289,1760812131976,-10000.01,0.00024142,2]
[391786290,1760812132235,-10000.01,0.00024142,2]
[391786291,1760812132402,-10000.01,0.00024142,2]
[391786292,1760812134319,-10000.01,0.00024142,2]
[391786293,1760812146400,-300.0,0.00024141,2]
[391786294,1760812146436,-9400.01,0.00024142,2]
[391786295,1760812149531,-713.19470896,0.00024142,2]
[391786296,1760812149554,-8573.62058208,0.00024142,2]
[391786297,1760812151974,5000.0,0.00023901,2]
[391786332,1760812232048,-2374.04333219,0.00024953,2]
[391786334,1760812232061,-2625.95666781,0.00024953,2]
[391786336,1760812232071,-150.0,0.00025205,2]
[391786338,1760812232081,-172.5,0.00025805,2]
[391786339,1760812232091,-195.0,0.00026405,2]
[391786340,1760812232101,-500.211119,0.00026676,2]
[391786341,1760812232111,-217.5,0.00027005,2]
[391786342,1760812232121,-300.0,0.00027498,2]
[391786345,1760812232131,-500.0,0.00027499,2]
[391786347,1760812232142,-500.0,0.00027499,2]
[391786348,1760812232153,-500.0,0.00027499,2]
[391786351,1760812232163,-500.0,0.00027499,2]
[391786353,1760812232174,-500.0,0.00027499,2]
[391786355,1760812232184,-500.0,0.00027499,2]
[391786357,1760812232195,-500.0,0.00027499,2]
[391786359,1760812232206,-500.0,0.00027499,2]
[391786361,1760812232216,-267.3428605,0.00027499,2]
[391786363,1760812232225,-500.0,0.00027499,2]
[391786365,1760812232235,-500.0,0.00027499,2]
[391786367,1760812232244,-500.0,0.00027499,2]
[391786369,1760812232254,-159.91944295,0.00027499,2]
[391786372,1760812232264,-500.0,0.00027499,2]
[391786375,1760812232274,-540.50314042,0.00027499,2]
[391786379,1760812232284,-508.19401681,0.00027499,2]
[391786382,1760812232294,-610.52055814,0.00027499,2]
[391786385,1760812232304,-229.35093659,0.00027499,2]
[391786388,1760812232313,-500.0,0.00027499,2]
[391786391,1760812232324,-500.0,0.00027499,2]
[391786394,1760812232334,-445.26066863,0.00027499,2]
[391786397,1760812232344,-500.0,0.00027499,2]
[391786400,1760812232354,-402.78104431,0.000275,2]
[391786404,1760812232364,-175.38030047,0.000275,2]
[391786406,1760812232375,-237.2904274,0.000275,2]
[391786408,1760812232384,-248.6270591,0.000275,2]
[391786410,1760812232394,-211.02650043,0.000275,2]
[391786411,1760812232403,-502.82857974,0.000275,2]
[391786412,1760812232416,-178.97431765,0.000275,2]
[391786413,1760812232426,-194.02089482,0.000275,2]
[391786415,1760812232437,-6908.3288069,0.000275,2]
[391786419,1760812232468,150.0,0.00021274,2]
[391786421,1760812232481,-514.4320135,0.000275,2]
[391786425,1760812232514,210.58,0.00023208,2]
[391786448,1760812237926,-315.87,0.00025142,2]
[391786450,1760812237936,-421.16,0.00027075,2]
[391786452,1760812237949,-42577.2391796,0.000275,2]
[391786454,1760812237958,-240.0,0.00027605,2]
[391786456,1760812237967,-248.6270591,0.000278,2]
[391786458,1760812237978,-681.80289739,0.000278,2]
[391786460,1760812237989,-248.6270591,0.00028,2]
[391786461,1760812237998,-681.80289739,0.00028,2]
[391786462,1760812238007,-300.0,0.00028049,30]
[391786464,1760812238018,-300.0,0.00028049,30]
[391786465,1760812238027,-248.6270591,0.000283,2]
[391786466,1760812238037,-681.80289739,0.000283,2]
[391786467,1760812238046,-248.6270591,0.000286,2]
[391786468,1760812238055,-681.80289739,0.000286,2]
[391786469,1760812238065,-526.45,0.00029009,2]
[391786470,1760812238075,-420.0,0.00029713,2]
[391786471,1760812238084,-190.57383891,0.00030522,2]
[391786472,1760812238093,-631.74,0.00030943,2]
[391786473,1760812238104,-11030.26253319,0.0003112,2]
[391786474,1760812238114,-33067.23630857,0.000319,2]
[391786475,1760812238123,-1123.9375696,0.00032057,2]
[391786476,1760812238133,-1363.0964095,0.00032057,2]
[391786477,1760812238143,-4994.5414474,0.00032057,2]
[391786478,1760812238152,-22652.6134213,0.00032057,2]
[391786479,1760812238162,-19427.1499672,0.00032057,2]
[391786480,1760812238171,-762.29535565,0.00032083,2]
[391786481,1760812238181,-1137.36,0.000321,2]
[391786482,1760812238191,-587.0,0.00032107,2]
[391786483,1760812238202,-737.03,0.00032877,2]
[391786484,1760812238212,-500.211119,0.00033165,2]
[391786485,1760812238222,-1715.16455021,0.00033644,2]
[391786486,1760812238232,-281.76,0.0003369,10]
[391786487,1760812238242,-3808.44,0.00033983,120]
[391786488,1760812238252,-234583.33670376,0.00033984,20]
[391786489,1760812238262,-475.6701749,0.00033984,30]
[391786490,1760812238271,-1415.44025984,0.00033984,7]
[391786491,1760812238282,-83815.07354198,0.00033984,2]
[391786492,1760812238291,-1305.70136534,0.00033984,7]
[391786493,1760812238301,-22703.60989424,0.00033984,2]
[391786494,1760812238311,-51811.5376527,0.00033984,2]
[391786495,1760812238321,-2494.76650696,0.00033984,7]
[391786496,1760812238330,-164.25622358,0.00033984,30]
[391786497,1760812238340,-248.44265289,0.00033984,30]
[391786498,1760812238349,-680.84933739,0.00033984,30]
[391786499,1760812238358,-3142.69999967,0.00033984,7]
[391786500,1760812238368,-1500.0,0.00033984,3]
[391786501,1760812238378,-736.87412277,0.00033984,30]
[391786502,1760812238387,-1197.72320147,0.00033984,2]
[391786503,1760812238397,-518.06643398,0.00033984,30]
[391786504,1760812238406,-908.61590984,0.00033984,30]
[391786505,1760812238416,-338.56650527,0.00033984,5]
[391786506,1760812238426,-1163.37570261,0.00033984,15]
[391786507,1760812238435,-58500.0,0.00033984,2]
[391786508,1760812238446,-1998.499999,0.00033984,2]
[391786509,1760812238456,-151.0,0.00033984,30]
[391786510,1760812238465,-151.0,0.00033984,30]
[391786511,1760812238474,-151.0,0.00033984,30]
[391786512,1760812238483,-151.0,0.00033984,30]
[391786513,1760812238493,-151.0,0.00033984,30]
[391786514,1760812238502,-171.22323,0.00033984,30]
[391786515,1760812238512,-151.0,0.00033984,30]
[391786516,1760812238521,-151.0,0.00033984,30]
[391786517,1760812238531,-151.0,0.00033984,30]
[391786518,1760812238540,-151.0,0.00033984,30]
[391786519,1760812238549,-151.0,0.00033984,30]
[391786520,1760812238560,-151.0,0.00033984,30]
[391786521,1760812238569,-5196.18,0.00034,14]
[391786522,1760812238578,-389.96,0.00034684,3]
[391786523,1760812238588,-823.0,0.00034693,2]
[391786524,1760812238597,-405.357355,0.00034743,120]
[391786525,1760812238607,-842.32,0.00034811,2]
[391786526,1760812238616,-3808.44,0.00034942,120]
[391786527,1760812238626,-170.51771704,0.00034999,120]
[391786528,1760812238635,-10673.66606535,0.00035,2]
[391786529,1760812238645,-655.32440928,0.00035,2]
[391786530,1760812238655,-572.13421571,0.00035,120]
[391786531,1760812238664,-620.60134166,0.00035,120]
[391786532,1760812238674,-421.36619875,0.00035,60]
[391786533,1760812238684,-500.0,0.00035049,30]
[391786534,1760812238694,-3049.18142259,0.00035205,2]
[391786535,1760812238703,-22652.6134213,0.00035337,2]
[391786536,1760812238713,-200.75172515,0.00035341,2]
[391786537,1760812238723,-4994.5414474,0.00035451,2]
[391786538,1760812238732,-16931.76,0.000355,14]
[391786539,1760812238741,-3808.44,0.00035901,120]
[391786540,1760812238750,-160.0,0.00036094,3]
[391786541,1760812238760,-203.27257829,0.0003621,2]
[391786542,1760812238770,-264.40070244,0.0003624,2]
[391786543,1760812238780,-1363.0964095,0.00036252,2]
[391786544,1760812238790,-200.75172514,0.00036356,2]
[391786545,1760812238799,-1434.19630761,0.000367,2]
[391786546,1760812238809,-947.61,0.00036745,2]
[391786547,1760812238819,-4764.34597279,0.00036766,2]
[391786548,1760812238828,-3808.44,0.0003686,120]
[391786549,1760812238838,-1434.19630761,0.00036875,2]
[391786550,1760812238847,-1137.36,0.000369,2]
[391786551,1760812238857,-200.0,0.00036958,120]
[391786552,1760812238866,-394.17742458,0.00037,120]
[391786553,1760812238876,-5196.18,0.00037,14]
[391786554,1760812238885,-151.0,0.00037,120]
[391786555,1760812238895,-151.0,0.00037,120]
[391786556,1760812238904,-200.0,0.00037018,120]
[391786557,1760812238914,-1434.19630761,0.000372,2]
[391786558,1760812238924,-158.4,0.00037321,2]
[391786559,1760812238933,-200.75172514,0.00037371,2]
[391786560,1760812238946,-1152.0,0.00037488,2]
[391786561,1760812238956,-13933.0,0.000375,2]
[391786562,1760812238966,-10000.0003835,0.000375,60]
[391786563,1760812238975,-1434.19630764,0.00037523,2]
[391786564,1760812238985,-151.0,0.000376,11]
[391786565,1760812238994,-192.4304022,0.00037707,120]
[391786566,1760812239004,-1123.9375696,0.00037707,2]
[391786567,1760812239014,-160.0,0.00037778,3]
[391786568,1760812239024,-1014.05384326,0.000378,2]
[391786569,1760812239033,-11453.06821786,0.00037804,2]
[391786570,1760812239043,-3808.44,0.00037819,120]
[391786571,1760812239053,-200.0,0.00037835,120]
[391786572,1760812239062,-200.0,0.00037835,120]
[391786573,1760812239072,-200.0,0.00037835,120]
[391786574,1760812239082,-50148.0,0.000379,120]
[391786575,1760812239091,-151.0,0.000379,120]
[391786576,1760812239101,-265.6534441,0.00037904,30]
[391786577,1760812239111,-1000.0,0.00037913,2]
[391786578,1760812239121,-1000.0,0.00038,10]
[391786579,1760812239131,-1068.78175628,0.00038,2]
[391786580,1760812239141,-4022.40614299,0.00038,30]
[391786581,1760812239150,-151.0,0.00038,120]
[391786582,1760812239161,-151.0,0.00038,120]
[391786583,1760812239171,-1100.0,0.00038082,7]
[391786584,1760812239180,-281.74,0.000381,20]
[391786585,1760812239190,-200.0,0.00038178,120]
[391786586,1760812239200,-168.0,0.00038195,120]
[391786587,1760812239210,-151.0,0.00038195,120]
[391786588,1760812239220,-502.55573725,0.00038247,30]
[391786589,1760812239231,-150.0,0.00038274,2]
[391786590,1760812239241,-151.0,0.000383,20]
[391786591,1760812239250,-500.0,0.00038356,120]
[391786592,1760812239260,-500.0,0.00038356,120]
[391786593,1760812239270,-500.0,0.00038356,120]
[391786594,1760812239280,-500.0,0.00038356,120]
[391786595,1760812239289,-168.0,0.00038365,7]
[391786596,1760812239298,-200.75172514,0.00038385,2]
[391786597,1760812239308,-16931.76,0.000384,14]
[391786598,1760812239318,-600.0,0.000384,2]
[391786599,1760812239327,-115559.32589266,0.00038511,4]
[391786600,1760812239337,-196.0,0.0003856,49]
[391786601,1760812239346,-22652.6134213,0.00038617,2]
[391786602,1760812239355,-1052.9,0.00038679,2]
[391786603,1760812239365,-4334.7830834,0.00038733,2]
[391786604,1760812239375,-3808.44,0.00038778,120]
[391786605,1760812239385,-168.0,0.00038784,7]
[391786606,1760812239394,-600.0,0.000388,2]
[391786607,1760812239405,-1000.0,0.0003883,8]
[391786608,1760812239414,-4994.5414474,0.00038846,2]
[391786609,1760812239423,-11453.06821785,0.00038852,2]
[391786610,1760812239433,-994.06023727,0.000389,120]
[391786611,1760812239442,-1100.0,0.00038904,7]
[391786612,1760812239452,-23091.04680233,0.00038987,30]
[391786613,1760812239462,-151.0,0.00038987,120]
[391786614,1760812239471,-264.826648,0.00038987,120]
[391786615,1760812239481,-500.0,0.00039,30]
[391786616,1760812239491,-1000.0,0.00039,10]
[391786617,1760812239502,-74984.78719534,0.00039,30]
[391786618,1760812239511,-211.92108182,0.00039,120]
[391786619,1760812239520,-5196.18,0.00039,14]
[391786620,1760812239530,-168.0,0.00039006,2]
[391786621,1760812239539,-254.8934092,0.00039041,30]
[391786622,1760812239549,-168.0,0.00039043,2]
[391786623,1760812239557,-670.61618831,0.00039159,7]
[391786624,1760812239567,-168.0,0.0003917,2]
[391786625,1760812239577,-1137.36,0.000394,2]
[391786626,1760812239586,-200.75172514,0.000394,2]
[391786627,1760812239595,-168.0,0.00039445,2]
[391786628,1760812239604,-168.0,0.00039453,2]
[391786629,1760812239614,-160.0,0.00039462,4]
[391786630,1760812239623,-202.9695303,0.00039464,3]
[391786631,1760812239633,-151.0,0.00039474,120]
[391786632,1760812239643,-38.98889428,0.00039474,120]
[391786792,1760812306311,150.0,0.00021601,2]
[391786793,1760812306710,150.0,0.00023565,2]
[391786794,1760812377719,150.0,0.00021534,2]
[391786795,1760812378171,150.0,0.00023491,2]
[391786796,1760812818072,4039.43,0.00024142,2]
[391786797,1760812818095,960.57,0.00024142,2]
[391786810,1760813226358,5000.0,0.00024142,2]
[391786811,1760813249205,4039.44,0.00024142,2]
[391786812,1760813249231,960.56,0.00024142,2]
[391786813,1760813269680,3083.99,0.00029041,120]
[391786878,1760813438072,-150.0,0.00024396,2]
[391786879,1760813438082,-287.02083184,0.00024996,2]
[391786880,1760813438092,-236.0,0.00024999,2]
[391786881,1760813438102,-300.0,0.00024999,2]
[391786882,1760813438111,-240.0,0.00024999,2]
[391786883,1760813438120,-1200.0,0.00024999,2]
[391786884,1760813438130,-2000.0,0.00025,14]
[391786885,1760813438139,-2000.0,0.00025,14]
[391786886,1760813438148,-1527.0,0.00025,14]
[391786887,1760813438158,-417.4877548,0.00025056,30]
[391786888,1760813438167,-192.15010407,0.00025399,2]
[391786889,1760813438177,-178.94672868,0.00025399,2]
[391786890,1760813438186,-271.69562985,0.00025399,2]
[391786892,1760813438196,-171.1670156,0.00025399,2]
[391786893,1760813438205,-170.5177181,0.00025401,2]
[391786894,1760813438215,-211.59801551,0.00027082,2]
[391786895,1760813438226,-208.40198449,0.00027082,2]
[391786896,1760813438236,-400.0,0.00027205,2]
[391786897,1760813438246,-237.29042741,0.000275,2]
[391786898,1760813438256,-175.38030047,0.000275,2]
[391786899,1760813438265,-168.82120034,0.000275,2]
[391786901,1760813438276,-994.50823639,0.000275,2]
[391786903,1760813438285,-194.02089483,0.000275,2]
[391786904,1760813438295,-1363.60579478,0.000275,2]
[391786905,1760813438304,-205.58642144,0.000275,2]
[391786906,1760813438313,-256.37516609,0.000276,2]
[391786907,1760813438323,-175.38030047,0.000277,2]
[391786908,1760813438333,-168.82120034,0.000277,2]
[391786909,1760813438343,-994.50823639,0.000277,2]
[391786910,1760813438352,-194.02089483,0.000277,2]
[391786911,1760813438361,-1363.60579478,0.000277,2]
[391786912,1760813438370,-168.82120034,0.00028,2]
[391786913,1760813438379,-994.50823639,0.00028,2]
[391786914,1760813438389,-194.02089483,0.00028,2]
[391786915,1760813438402,-131.41732875,0.00028,2]
[391787101,1760813536847,417.15472785,0.00024,3]
[391787103,1760813668153,150.0,0.0002012,2]
[391787104,1760813668557,150.0,0.00021949,2]
[391787105,1760813668962,150.0,0.00023778,2]
[391787109,1760813724217,417.15472785,0.00024142,2]
[391787110,1760813743294,150.0,0.00020123,2]
[391787111,1760813743721,150.0,0.00021952,2]
[391787112,1760813744187,150.0,0.00023781,2]
[391787113,1760813814950,150.0,0.00021124,2]
[391787114,1760813815365,150.0,0.00023044,2]
[391787115,1760813856787,7005.1405443,0.00024142,2]
[391787116,1760813856808,10000.01,0.00024142,2]
[391787117,1760813856829,2999.7594557,0.00024142,2]
[391787118,1760813863714,168.723552,0.00013637,2]
[391787131,1760814157572,467.651887,0.00013699,2]
[391787132,1760814157799,467.651887,0.00020187,2]
[391787135,1760814349171,417.15472785,0.00024142,2]
[391787199,1760814640465,-240.0,0.00025205,2]
[391787201,1760814640476,-467.651887,0.00026676,2]
[391787212,1760814640607,-168.723552,0.00027273,2]
[391787213,1760814640618,-141.20372246,0.00027498,2]
[391787454,1760814969045,417.15472785,0.00024142,2]
[391787459,1760815115034,305.96452678,0.0002414,2]
[391787463,1760815376250,150.0,0.00020172,2]
[391787464,1760815376707,150.0,0.00022005,2]
[391787465,1760815377109,150.0,0.00023839,2]
[391787466,1760815447885,150.0,0.00021102,2]
[391787467,1760815448311,150.0,0.00023021,2]
[391787485,1760815518772,150.0,0.00021182,2]
[391787486,1760815519159,150.0,0.00023108,2]
[391787505,1760815590297,150.0,0.00021207,2]
[391787506,1760815590799,150.0,0.00023135,2]
[391787507,1760815591536,417.15472785,0.00024142,2]
[391787525,1760815661958,150.0,0.00021657,2]
[391787526,1760815662347,150.0,0.00023626,2]
[391787533,1760815719268,2688.79450797,0.0002,2]
[391787534,1760815719292,6797.30899862,0.0002,2]
[391787568,1760815833148,-272.06551196,0.0002475,2]
[391787579,1760815840760,-4727.93448804,0.0002475,2]
[391787580,1760815840771,-300.0,0.00024999,2]
[391787581,1760815840781,-1058.0,0.00024999,2]
[391787582,1760815840792,-16319.34655085,0.00025,2]
[391787583,1760815840875,-1127.64091198,0.00025,2]
[391787806,1760815846804,-3773.0,0.00025,2]
[391787807,1760816234590,417.15472785,0.00024142,2]
[391787808,1760816273885,715.87308978,0.00023824,2]
[391787810,1760816554700,1434.19630761,0.00023858,2]
[391787811,1760816576221,521.01473065,0.00023331,2]
[391787813,1760816856221,114.46214549,0.00024142,2]
[391787814,1760816856245,302.69258236,0.00024142,2]
[391787816,1760816994198,447.525216,0.00013699,2]
[391787817,1760816994369,447.525216,0.00020187,2]
[391787856,1760817031850,-1000.0,0.00024669,30]
[391787858,1760817031860,-150.0,0.00024669,2]
[391787860,1760817031870,-444.67039334,0.00024879,2]
[391788041,1760817036372,157.54662229,0.00023789,2]
[391788139,1760817039970,-398.57146045,0.00024879,2]
[391788204,1760817045984,-327.74254354,0.00024879,2]
[391788206,1760817181388,409.74222341,0.0002378,2]
[391788207,1760817183877,737.53600214,0.0002378,2]
[391788208,1760817185769,1311.17511491,0.0002378,2]
[391788209,1760817187831,2048.71111704,0.0002378,2]
[391788211,1760817340676,425.68841702,0.0002378,2]
[391788215,1760817480439,1440.36413872,0.00023331,2]
[391788226,1760817694898,1043.86817517,0.00024036,2]
[391788227,1760817777660,417.15472785,0.00024142,2]
[391788228,1760817783894,810.48044709,0.00023354,2]
[391788229,1760817783918,1869.30184138,0.00023354,2]
[391788230,1760817786252,184.89715878,0.00023947,2]
[391788231,1760817788392,332.8148858,0.00023947,2]
[391788233,1760818081449,155.43102187,0.00023354,2]
[391788262,1760818235603,-1043.86817518,0.0002428,2]
[391788264,1760818235612,-1043.86817518,0.00024597,2]